bitfinex/quotes_ETHUSD_20240917
["timestamp","ask_amount","ask_price","bid_price","bid_amount"]
[1726557077680,2.3677,2307.1,2306.8,0.90952402]
[1726557078202,6.70218,2307.1,2306.8,0.90952402]
[1726557078881,6.70218,2307.1,2306.6,4.33523]
[1726557079086,6.70218,2307.1,2306.6,5.428701]
[1726557080600,6.70218,2307.1,2306.6,1.093471]
[1726557080806,8.26441947,2307.1,2306.6,1.093471]
[1726557080971,2.3359,2307.0,2306.5,4.33556]
[1726557082572,2.3359,2307.0,2306.6,4.29537995]
[1726557083696,2.3359,2307.0,2306.6,8.63075995]
[1726557083884,2.3359,2307.0,2306.7,3.49067087]
[1726557086586,2.3087708,2307.2,2306.8,8.6698]
[1726557086788,2.3087708,2307.2,2306.8,5.89712947]
[1726557087100,0.10099543,2307.1,2306.9,4.3348]
[1726557087260,0.10099543,2307.1,2306.9,5.70706003]
[1726557087459,0.10099543,2307.1,2307.0,3.38229215]
[1726557088003,0.10099543,2307.1,2307.0,7.71692215]
[1726557088699,0.10099543,2307.1,2307.0,3.38229215]
[1726557088912,0.10099543,2307.1,2307.0,8.85369015]
[1726557089202,0.10099543,2307.1,2307.0,8.85266438]
[1726557090362,0.10099543,2307.1,2307.0,4.51803438]
[1726557090709,0.10099543,2307.1,2307.0,11.28256438]
[1726557091207,0.10099543,2307.1,2307.0,6.94793438]
[1726557091787,0.10099543,2307.1,2307.0,2.48927455]
[1726557093869,0.10099543,2307.1,2307.0,2.48836537]
[1726557094490,0.10099543,2307.1,2307.0,1.136768]
[1726557094773,0.10099543,2307.1,2307.0,2.48827155]
[1726557094998,0.10099543,2307.1,2307.0,1.136768]
[1726557095318,2.50559543,2307.1,2306.8,7.62969913]
[1726557095471,2.50559543,2307.1,2306.9,1.35152977]
[1726557095673,2.50559543,2307.1,2306.8,4.335]
[1726557095900,2.50559543,2307.1,2306.9,3.37880791]
[1726557096080,2.50559543,2307.1,2306.8,6.74688586]
[1726557096294,2.50559543,2307.1,2306.9,3.37876483]
[1726557096495,2.50559543,2307.1,2306.8,6.74688586]
[1726557096716,2.50559543,2307.1,2306.9,3.3786097]
[1726557096872,2.50559543,2307.1,2306.8,6.74688586]
[1726557097075,2.50559543,2307.1,2306.9,3.37860705]
[1726557097378,0.10099543,2307.1,2307.0,5.78821048]
[1726557097694,0.10099543,2307.1,2307.0,5.78802375]
[1726557097897,0.10099543,2307.1,2307.0,3.76134282]
[1726557098571,0.10099543,2307.1,2307.0,1.35144282]
[1726557098801,2.83798205,2307.1,2306.8,0.91129913]
[1726557099003,2.57649543,2307.1,2306.7,0.91129913]
[1726557099184,2.57649543,2307.1,2306.8,3.37835192]
[1726557099383,2.57649543,2307.1,2306.7,0.91129913]
[1726557099613,2.57649543,2307.1,2306.8,1.35130437]
[1726557099821,2.57649543,2307.1,2306.6,5.24651913]
[1726557100112,8.4731949,2307.1,2306.7,3.37835325]
[1726557100284,2.4755,2307.0,2306.6,0.91129913]
[1726557100615,0.10078103,2306.9,2306.7,1.35142368]
[1726557100779,0.10078103,2306.9,2306.5,6.66758683]
[1726557100976,0.10078103,2306.9,2306.6,4.28997383]
[1726557101194,0.10078103,2306.9,2306.7,3.3786747]
[1726557101514,0.10078103,2306.9,2306.6,0.91129913]
[1726557101722,0.10078103,2306.9,2306.7,3.37869347]
[1726557101959,0.10078103,2306.9,2306.6,0.91129913]
[1726557102077,0.10078103,2306.9,2306.7,3.37876735]
[1726557102276,0.10078103,2306.9,2306.6,2.33057851]
[1726557102530,0.10078103,2306.9,2306.7,3.37879363]
[1726557102683,0.10078103,2306.9,2306.6,2.33057851]
[1726557103015,0.10078103,2306.9,2306.7,3.3788996]
[1726557103240,0.10078103,2306.9,2306.6,2.33057851]
[1726557103421,0.10078103,2306.9,2306.7,3.37895078]
[1726557103620,0.10078103,2306.9,2306.6,2.33057851]
[1726557103830,0.10078103,2306.9,2306.7,3.3790584]
[1726557103992,0.10078103,2306.9,2306.6,2.33057851]
[1726557104194,0.10078103,2306.9,2306.7,3.37900836]
[1726557104516,0.10078103,2306.9,2306.8,3.37889292]
[1726557104823,0.10078103,2306.9,2306.8,13.52512967]
[1726557105128,0.0383708,2307.2,2306.9,4.33466]
[1726557105336,0.0383708,2307.2,2307.0,3.37882811]
[1726557105504,0.0383708,2307.2,2307.0,2.67674914]
[1726557105692,0.0383708,2307.2,2307.0,7.01134914]
[1726557106024,0.0383708,2307.2,2307.0,4.3346]
[1726557106390,0.0383708,2307.2,2307.1,1.35097747]
[1726557106928,0.0383708,2307.2,2307.0,4.3346]
[1726557108615,0.0383708,2307.2,2307.0,4.33452]
[1726557110266,0.0383708,2307.2,2307.1,8.66888]
[1726557110472,0.0383708,2307.2,2307.1,17.12796818]
[1726557110674,0.4538632,2307.6,2307.2,4.33419]
[1726557110876,2.3405,2307.7,2307.3,3.37595553]
[1726557111172,2.3405,2307.7,2307.3,6.18334866]
[1726557111557,2.3405,2307.7,2307.4,1.34923853]
[1726557111777,2.3405,2307.7,2307.3,6.18334866]
[1726557112074,0.0383708,2307.8,2307.4,10.05619154]
[1726557112374,0.0383708,2307.8,2307.5,1.34910263]
[1726557112578,0.0383708,2307.8,2307.4,7.82584093]
[1726557113471,0.0383708,2307.8,2307.4,12.15961093]
[1726557113659,0.0383708,2307.8,2307.4,7.82584093]
[1726557113860,0.0383708,2307.8,2307.5,0.78258409]
[1726557115283,0.0383708,2307.8,2307.5,5.11626409]
[1726557117080,0.09772969,2307.7,2307.5,5.11626409]
[1726557117270,0.0383708,2307.8,2307.5,5.11626409]
[1726557117471,0.09772969,2307.7,2307.5,5.11626409]
[1726557117653,0.0383708,2307.8,2307.6,1.2942105]
[1726557117861,0.09772969,2307.7,2307.6,1.2942105]
[1726557118076,0.0383708,2307.8,2307.6,1.2942105]
[1726557118378,0.09772969,2307.7,2307.6,1.2942105]
[1726557119089,0.0383708,2307.8,2307.6,1.2942105]
[1726557119391,0.09772969,2307.7,2307.6,1.2942105]
[1726557119747,0.0383708,2307.8,2307.6,5.6275805]
[1726557120086,0.0383708,2307.8,2307.7,4.97435746]
[1726557120687,0.0383708,2307.8,2307.7,0.64104746]
[1726557120886,0.0383708,2307.8,2307.7,4.97435746]
[1726557121387,0.0383708,2307.8,2307.7,7.25925746]
[1726557122022,0.0383708,2307.8,2307.7,11.67923054]
[1726557122192,0.0383708,2307.8,2307.7,12.22923054]
[1726557122551,0.0383708,2307.8,2307.7,13.57551783]
[1726557122751,0.0383708,2307.8,2307.7,15.59486923]
[1726557123484,0.0383708,2307.8,2307.7,13.57551783]
[1726557123987,0.0383708,2307.8,2307.7,13.48885475]
[1726557124194,0.0383708,2307.8,2307.7,4.97435746]
[1726557126590,0.0383708,2307.8,2307.7,0.64104746]
[1726557126792,0.0383708,2307.8,2307.6,8.66677]
[1726557126954,0.0383708,2307.8,2307.6,4.33338]
[1726557127148,0.0383708,2307.8,2307.6,8.66678]
[1726557127387,0.0383708,2307.8,2307.6,4.33338]
[1726557127587,0.0383708,2307.8,2307.6,8.66677]
[1726557127893,0.0383708,2307.8,2307.7,11.16172]
[1726557128289,0.0383708,2307.8,2307.7,6.82841]
[1726557128799,0.0383708,2307.8,2307.7,4.33331]
[1726557132119,0.13662744,2307.8,2307.7,4.33331]
[1726557137041,0.13662744,2307.8,2307.6,5.200067]
[1726557137210,0.13662744,2307.8,2307.6,4.33339]
[1726557138019,2.4673,2307.7,2307.4,4.33377]
[1726557138306,2.56590492,2307.7,2307.4,4.33376]
[1726557138504,2.56590492,2307.7,2307.4,8.66752]
[1726557138704,2.56590492,2307.7,2307.4,8.66753]
[1726557139820,2.56590492,2307.7,2307.4,8.66752]
[1726557140022,2.56590492,2307.7,2307.5,4.33368]
[1726557140239,2.56590492,2307.7,2307.4,4.33376]
[1726557141863,2.56590492,2307.7,2307.4,8.66752]
[1726557144364,2.56590492,2307.7,2307.5,4.33368]
[1726557146024,2.56590492,2307.7,2307.4,8.66754]
[1726557146427,2.56590492,2307.7,2307.4,4.33376]
[1726557146857,2.56590492,2307.7,2307.4,8.66754]
[1726557148255,2.56590492,2307.7,2307.4,8.66753]
[1726557148454,4.33391,2307.4,2307.1,0.90857062]
[1726557148792,4.33391,2307.4,2307.0,1.3669487]
[1726557148793,0.09838608,2307.3,2307.0,4.33451]
[1726557149091,0.09838608,2307.3,2307.0,8.66903]
[1726557149589,0.09838608,2307.3,2307.0,8.66904]
[1726557149890,0.09838608,2307.3,2307.1,4.3344]
[1726557151486,0.09838608,2307.3,2306.9,0.90857062]
[1726557151653,0.09838608,2307.3,2307.0,3.37326678]
[1726557151856,0.09838608,2307.3,2306.9,0.90857062]
[1726557152151,0.09838608,2307.3,2307.0,3.37338153]
[1726557152349,0.09838608,2307.3,2306.9,0.90857062]
[1726557152350,2.3094,2307.2,2306.9,0.90857062]
[1726557152553,0.09798589,2307.1,2307.0,7.70788243]
[1726557153293,0.09798589,2307.1,2307.0,9.13983011]
[1726557153996,0.09798589,2307.1,2307.0,13.47446011]
[1726557154195,2.3125,2307.4,2307.1,4.33436]
[1726557156080,2.3125,2307.4,2307.2,4.33425]
[1726557156317,2.3125,2307.4,2307.0,5.24305062]
[1726557156523,2.3125,2307.4,2307.1,7.70808428]
[1726557156823,2.3125,2307.4,2307.2,1.34949771]
[1726557157021,2.3125,2307.4,2307.1,4.33434]
[1726557157186,2.3125,2307.4,2307.2,1.34949504]
[1726557157514,2.3125,2307.4,2307.1,4.33434]
[1726557157715,2.3125,2307.4,2307.2,1.34938445]
[1726557157877,2.3125,2307.4,2307.1,4.33434]
[1726557160106,3.8746796,2307.4,2307.1,4.33434]
[1726557160506,3.8746796,2307.4,2307.0,8.669]
[1726557160933,3.8746796,2307.4,2307.1,4.33444]
[1726557161441,0.09809172,2307.3,2307.1,4.33444]
[1726557162356,0.09809172,2307.3,2307.2,4.33425]
[1726557165662,2.2987,2307.2,2307.0,4.33448]
[1726557166017,0.09797202,2307.1,2307.0,4.33448]
[1726557166339,0.09797202,2307.1,2307.0,13.13452093]
[1726557166520,0.09797202,2307.1,2307.0,15.42402093]
[1726557166721,2.2987,2307.4,2307.2,4.33417]
[1726557167254,0.09810905,2307.3,2307.2,4.33417]
[1726557171071,0.09810905,2307.3,2307.0,8.66896]
[1726557171278,0.09810905,2307.3,2307.1,5.68305507]
[1726557171475,0.09810905,2307.3,2307.1,4.33442]
[1726557172288,2.3093,2307.2,2307.1,4.33442]
[1726557172591,2.4073492,2307.2,2306.9,5.24323062]
[1726557172790,2.4073492,2307.2,2306.9,4.33466]
[1726557172992,2.4073492,2307.2,2307.0,5.68339137]
[1726557173179,2.4073492,2307.2,2307.0,4.33463]
[1726557173379,0.0980492,2307.2,2307.1,4.33444]
[1726557173676,2.2627,2307.4,2307.1,4.33444]
[1726557173879,0.09805614,2307.2,2307.1,4.33444]
[1726557174178,2.2627,2307.4,2307.1,1.30366465]
[1726557174379,0.09811598,2307.3,2307.0,8.66914]
[1726557175298,0.09811598,2307.3,2307.1,4.33441]
[1726557179411,0.09811598,2307.3,2307.0,8.66904]
[1726557179718,0.09811598,2307.3,2307.1,1.34945496]
[1726557180014,0.09811598,2307.3,2307.0,8.66902]
[1726557180207,0.09811598,2307.3,2307.1,1.34944514]
[1726557180370,0.09811598,2307.3,2307.0,8.66902]
[1726557180573,0.09811598,2307.3,2307.1,1.34957249]
[1726557180875,0.09811598,2307.3,2307.1,4.33431]
[1726557181071,0.09811598,2307.3,2307.1,5.34119352]
[1726557181815,0.09811598,2307.3,2307.2,1.34962625]
[1726557182176,0.09811598,2307.3,2307.1,5.34119352]
[1726557182410,0.09811598,2307.3,2307.2,1.35003323]
[1726557183113,0.09811598,2307.3,2307.2,7.70926544]
[1726557183315,2.4414,2307.4,2307.2,3.37501544]
[1726557183610,8.8956196,2307.7,2307.2,5.76615948]
[1726557183611,0.09749307,2307.3,2307.2,5.76615948]
[1726557183815,2.3684,2307.6,2307.2,9.97957265]
[1726557184012,2.3684,2307.6,2307.3,3.37520474]
[1726557184218,2.3684,2307.6,2307.2,7.51292062]
[1726557184384,2.3684,2307.6,2307.3,3.37535018]
[1726557184718,2.3684,2307.6,2307.2,7.51292062]
[1726557184882,2.3684,2307.6,2307.3,3.37539098]
[1726557185077,2.3684,2307.6,2307.2,7.51292062]
[1726557185405,2.3684,2307.6,2307.3,3.37545023]
[1726557185579,2.3684,2307.6,2307.2,5.24282062]
[1726557185780,2.3684,2307.6,2307.3,3.37586018]
[1726557186077,3.93194404,2307.6,2307.2,5.24282062]
[1726557186322,3.93194404,2307.6,2307.3,3.37550325]
[1726557186487,3.93194404,2307.6,2307.2,5.24282062]
[1726557186820,3.93194404,2307.6,2307.3,3.37563683]
[1726557187018,3.93194404,2307.6,2307.2,5.24282062]
[1726557187219,3.93194404,2307.6,2307.3,3.37571742]
[1726557187519,3.93194404,2307.6,2307.2,5.24282062]
[1726557187822,3.93194404,2307.6,2307.3,3.37604885]
[1726557187978,3.93194404,2307.6,2307.2,5.24282062]
[1726557188178,2.3684,2307.6,2307.3,3.37605115]
[1726557188379,2.3684,2307.6,2307.2,5.24282062]
[1726557188603,2.3684,2307.6,2307.3,3.37651005]
[1726557188798,2.3684,2307.6,2307.2,5.24282062]
[1726557189019,2.3684,2307.6,2307.3,3.37651691]
[1726557189220,2.3684,2307.6,2307.2,5.24282062]
[1726557189422,2.3684,2307.6,2307.3,3.37677185]
[1726557189588,2.3684,2307.6,2307.2,5.24282062]
[1726557189795,2.3684,2307.6,2307.3,3.37677058]
[1726557189998,2.3684,2307.6,2307.2,5.24282062]
[1726557190336,2.3684,2307.6,2307.3,3.37677227]
[1726557190497,2.3684,2307.6,2307.4,1.35070891]
[1726557190696,2.3684,2307.6,2307.2,5.24282062]
[1726557190925,2.3684,2307.6,2307.3,4.28577992]
[1726557191118,2.3684,2307.6,2307.4,1.35088372]
[1726557191313,2.3684,2307.6,2307.2,5.24282062]
[1726557191516,2.3684,2307.6,2307.3,3.37739588]
[1726557191720,2.3684,2307.6,2307.4,1.35095835]
[1726557192030,0.09727329,2307.5,2307.2,5.24282062]
[1726557192358,0.09727329,2307.5,2307.3,4.28601922]
[1726557192560,0.09727329,2307.5,2307.4,3.3774486]
[1726557194062,0.09727329,2307.5,2307.3,0.90857062]
[1726557194260,0.09727329,2307.5,2307.4,3.37852401]
[1726557197674,1.65945289,2307.5,2307.4,3.37852401]
[1726557197840,2.79559118,2307.5,2307.4,1.35127479]
[1726557198546,5.19089118,2307.5,2307.4,1.35127479]
[1726557198955,5.19089118,2307.5,2307.2,0.90857062]
[1726557199133,5.19089118,2307.5,2307.3,3.37906933]
[1726557199339,5.19089118,2307.5,2307.2,0.90857062]
[1726557199340,5.19089118,2307.5,2307.1,0.90857062]
[1726557199552,9.52462118,2307.5,2307.2,4.28789319]
[1726557199771,9.52462118,2307.5,2307.3,3.37932257]
[1726557200014,9.52462118,2307.5,2307.2,0.90857062]
[1726557200369,9.52462118,2307.5,2307.3,1.35169675]
[1726557200583,8.38848289,2307.5,2307.2,0.90857062]
[1726557200984,8.38848289,2307.5,2307.3,1.35169813]
[1726557201184,9.96068418,2307.5,2307.1,0.90857062]
[1726557201394,9.96068418,2307.5,2307.2,3.37918398]
[1726557201603,9.96068418,2307.5,2307.3,1.35167359]
[1726557201903,4.05475289,2307.5,2307.1,5.24299062]
[1726557202103,4.05475289,2307.5,2307.2,4.28773607]
[1726557202281,4.05475289,2307.5,2307.3,3.37916545]
[1726557202609,4.05475289,2307.5,2307.2,0.90857062]
[1726557202794,4.05475289,2307.5,2307.3,3.37906906]
[1726557202999,4.05475289,2307.5,2307.2,0.90857062]
[1726557203174,4.05475289,2307.5,2307.3,3.3790592]
[1726557203374,4.05475289,2307.5,2307.2,0.90857062]
[1726557203638,4.05475289,2307.5,2307.3,3.379063]
[1726557203776,5.19358118,2307.5,2307.2,0.90857062]
[1726557204107,5.19358118,2307.5,2307.3,1.35165014]
[1726557204295,9.52740118,2307.5,2307.1,0.90857062]
[1726557204495,9.52740118,2307.5,2307.2,3.37935333]
[1726557204673,9.52740118,2307.5,2307.1,0.90857062]
[1726557204874,9.52740118,2307.5,2307.2,3.37932498]
[1726557205080,9.52740118,2307.5,2307.3,1.35172999]
[1726557205275,9.52740118,2307.5,2307.1,0.90857062]
[1726557205512,9.52740118,2307.5,2307.2,3.37921258]
[1726557205711,9.52740118,2307.5,2307.3,1.35169809]
[1726557205916,9.52740118,2307.5,2307.1,0.90857062]
[1726557206115,9.52740118,2307.5,2307.2,3.37923448]
[1726557206339,9.52740118,2307.5,2307.1,0.90857062]
[1726557206479,9.52740118,2307.5,2307.2,3.3791568]
[1726557206794,9.52740118,2307.5,2307.1,0.90857062]
[1726557206978,9.52740118,2307.5,2307.2,3.37913375]
[1726557207177,5.19358118,2307.5,2307.1,6.60993932]
[1726557207410,4.05475289,2307.5,2307.2,4.28738485]
[1726557207611,4.05475289,2307.5,2307.3,3.37881423]
[1726557207830,4.05475289,2307.5,2307.2,0.90857062]
[1726557208142,4.05475289,2307.5,2307.3,3.37892497]
[1726557208438,4.05475289,2307.5,2307.2,0.90857062]
[1726557208643,4.05475289,2307.5,2307.3,3.3788261]
[1726557208832,4.05475289,2307.5,2307.2,0.90857062]
[1726557209139,4.05475289,2307.5,2307.3,3.37888857]
[1726557209347,4.05475289,2307.5,2307.2,0.90857062]
[1726557209508,5.49257329,2307.5,2307.3,3.37881385]
[1726557209709,5.49257329,2307.5,2307.2,0.90857062]
[1726557209951,5.49257329,2307.5,2307.3,3.37879415]
[1726557210145,5.49257329,2307.5,2307.2,0.90857062]
[1726557210350,5.49257329,2307.5,2307.3,3.37883988]
[1726557210529,5.49257329,2307.5,2307.2,0.90857062]
[1726557210726,5.49257329,2307.5,2307.3,3.37882111]
[1726557210929,5.49257329,2307.5,2307.2,0.90857062]
[1726557211126,5.49257329,2307.5,2307.3,3.37885796]
[1726557211433,5.49257329,2307.5,2307.2,0.90857062]
[1726557211627,5.49257329,2307.5,2307.3,3.37878645]
[1726557211828,5.49257329,2307.5,2307.2,0.90857062]
[1726557212046,2.49257329,2307.5,2307.3,3.37878063]
[1726557212262,2.49257329,2307.5,2307.2,0.90857062]
[1726557212475,5.49257329,2307.5,2307.3,3.37866868]
[1726557212769,5.49257329,2307.5,2307.2,0.90857062]
[1726557212928,2.49257329,2307.5,2307.3,3.37853075]
[1726557213128,2.49257329,2307.5,2307.2,0.90857062]
[1726557213330,2.49257329,2307.5,2307.3,3.37852157]
[1726557213562,2.49257329,2307.5,2307.4,1.35140863]
[1726557214063,2.49257329,2307.5,2307.4,3.37832025]
[1726557214368,2.49257329,2307.5,2307.4,1.35140863]
[1726557214941,2.49257329,2307.5,2307.4,3.37835138]
[1726557216338,2.49257329,2307.5,2307.4,3.3781916]
[1726557216540,0.09727329,2307.5,2307.4,3.3781916]
[1726557216977,5.2971,2307.7,2307.4,3.3781916]
[1726557217168,0.08415326,2307.5,2307.3,0.90857062]
[1726557217371,5.2971,2307.7,2307.4,3.37794938]
[1726557217540,5.2971,2307.7,2307.5,1.35117975]
[1726557217875,5.2971,2307.7,2307.3,0.90857062]
[1726557218084,5.2971,2307.7,2307.4,3.3780578]
[1726557218256,5.2971,2307.7,2307.3,0.90857062]
[1726557218454,5.2971,2307.7,2307.4,1.35127229]
[1726557218759,5.2971,2307.7,2307.2,7.52207062]
[1726557218954,5.2971,2307.7,2307.3,3.37819708]
[1726557219172,5.2971,2307.7,2307.4,1.35127883]
[1726557219373,5.2971,2307.7,2307.3,0.90857062]
[1726557219568,5.2971,2307.7,2307.4,1.35129843]
[1726557219774,5.2971,2307.7,2307.3,0.90857062]
[1726557219969,5.2971,2307.7,2307.4,1.35128102]
[1726557220183,5.2971,2307.7,2307.3,0.90857062]
[1726557220348,5.2971,2307.7,2307.4,1.35129869]
[1726557220562,5.2971,2307.7,2307.3,0.90857062]
[1726557220742,5.2971,2307.7,2307.4,3.37823458]
[1726557220946,5.2971,2307.7,2307.3,0.90857062]
[1726557221153,5.2971,2307.7,2307.4,3.3782164]
[1726557221358,5.2971,2307.7,2307.3,0.90857062]
[1726557221561,5.2971,2307.7,2307.4,1.35130058]
[1726557221844,11.97923822,2307.7,2307.3,0.90857062]
[1726557222050,0.08423669,2307.6,2307.4,1.35132116]
[1726557222278,0.08423669,2307.6,2307.3,0.90857062]
[1726557222505,0.08423669,2307.6,2307.4,1.3513409]
[1726557222706,0.08423669,2307.6,2307.3,0.90857062]
[1726557223009,0.08423669,2307.6,2307.4,3.3783436]
[1726557223183,0.08423669,2307.6,2307.3,0.90857062]
[1726557223381,0.08423669,2307.6,2307.4,3.37840947]
[1726557223681,0.08423669,2307.6,2307.2,5.24267062]
[1726557223682,1.64641629,2307.6,2307.2,5.24267062]
[1726557223884,1.64641629,2307.6,2307.3,3.37858372]
[1726557224091,1.64641629,2307.6,2307.4,1.35143349]
[1726557224296,1.64641629,2307.6,2307.2,5.24267062]
[1726557224610,1.64641629,2307.6,2307.3,3.37854355]
[1726557224771,1.64641629,2307.6,2307.4,1.35141742]
[1726557224966,1.64641629,2307.6,2307.2,5.24267062]
[1726557225171,1.64641629,2307.6,2307.3,3.37856011]
[1726557225430,1.64641629,2307.6,2307.4,1.35142404]
[1726557225573,1.64641629,2307.6,2307.2,5.24267062]
[1726557225914,1.64641629,2307.6,2307.3,3.37865686]
[1726557226110,1.64641629,2307.6,2307.4,1.35146928]
[1726557226311,1.64641629,2307.6,2307.2,5.24267062]
[1726557226487,1.64641629,2307.6,2307.3,3.37870827]
[1726557226807,1.64641629,2307.6,2307.4,1.35148331]
[1726557226967,1.64641629,2307.6,2307.2,5.24267062]
[1726557227172,1.64641629,2307.6,2307.3,3.37872651]
[1726557227371,1.64641629,2307.6,2307.4,1.3514906]
[1726557227570,1.64641629,2307.6,2307.2,5.24267062]
[1726557227773,1.64641629,2307.6,2307.3,3.37876733]
[1726557227993,2.4696,2307.5,2307.4,1.35150693]
[1726557228515,6.69871346,2307.5,2307.2,0.90857062]
[1726557228729,5.55377683,2307.5,2307.3,1.35161845]
[1726557228924,5.55377683,2307.5,2307.2,0.90857062]
[1726557229225,5.55377683,2307.5,2307.3,3.37906158]
[1726557229526,7.13206147,2307.5,2307.2,0.90857062]
[1726557229811,7.13206147,2307.5,2307.3,3.37858948]
[1726557230059,7.13206147,2307.5,2307.2,0.90857062]
[1726557230228,7.13206147,2307.5,2307.3,1.35144122]
[1726557230553,11.46580147,2307.5,2307.2,0.90857062]
[1726557230758,11.46580147,2307.5,2307.3,1.35138757]
[1726557230964,2.3798,2307.3,2307.1,0.90857062]
[1726557231123,2.3798,2307.3,2307.2,3.37872635]
[1726557231322,3.9419796,2307.3,2307.2,3.37872635]
[1726557231544,4.02619136,2307.3,2307.2,3.37872635]
[1726557231862,4.02619136,2307.3,2307.2,1.35149054]
[1726557235667,4.02619136,2307.3,2307.0,0.90857062]
[1726557235853,4.02619136,2307.3,2307.1,3.37785562]
[1726557236056,4.02619136,2307.3,2307.2,1.35114231]
[1726557236372,4.02619136,2307.3,2307.0,0.90857062]
[1726557236540,4.02619136,2307.3,2307.1,3.37773711]
[1726557236876,4.02619136,2307.3,2307.0,0.90857062]
[1726557237060,4.02619136,2307.3,2307.1,3.37773738]
[1726557237258,4.02619136,2307.3,2307.0,0.90857062]
[1726557237462,4.02619136,2307.3,2307.1,3.37758917]
[1726557237678,0.08421176,2307.3,2307.2,1.35103542]
[1726557237848,7.0483796,2307.5,2307.2,3.37746535]
[1726557238043,0.084176,2307.4,2307.1,0.90857062]
[1726557238249,2.4528,2307.3,2307.2,3.37732176]
[1726557238481,2.53691614,2307.3,2307.2,1.3509287]
[1726557240385,2.53691614,2307.3,2307.2,3.37736872]
[1726557240572,2.53691614,2307.3,2307.2,1.35099811]
[1726557241162,2.53691614,2307.3,2307.2,3.37747616]
[1726557242159,2.53691614,2307.3,2307.2,1.35099811]
[1726557242752,2.53691614,2307.3,2307.2,3.37749661]
[1726557243150,2.53691614,2307.3,2307.2,1.35099811]
[1726557243349,2.53691614,2307.3,2307.2,3.37750487]
[1726557243550,17.34393631,2307.3,2307.2,1.35099811]
[1726557243778,15.76741574,2307.3,2307.0,0.90857062]
[1726557244096,11.43316574,2307.3,2307.1,3.3778684]
[1726557244389,11.43316574,2307.3,2307.0,0.90857062]
[1726557244564,15.76733574,2307.3,2307.1,3.37773186]
[1726557244765,11.43316574,2307.3,2307.0,0.90857062]
[1726557244963,11.43316574,2307.3,2307.1,1.35117216]
[1726557245190,11.43316574,2307.3,2306.9,0.90857062]
[1726557245382,11.43316574,2307.3,2307.0,3.37767615]
[1726557245716,11.43316574,2307.3,2307.1,1.35107046]
[1726557246012,11.43316574,2307.3,2306.9,0.90857062]
[1726557246318,4.3343,2307.2,2307.0,3.377518]
[1726557246490,4.41825928,2307.2,2306.9,0.90857062]
[1726557246688,4.41825928,2307.2,2307.0,1.35110473]
[1726557246872,4.41825928,2307.2,2306.8,2.33807432]
[1726557247073,4.41825928,2307.2,2306.9,3.37773157]
[1726557247309,4.41825928,2307.2,2307.0,1.35109263]
[1726557247517,4.41825928,2307.2,2306.8,2.33807432]
[1726557247729,4.41825928,2307.2,2306.9,3.3773966]
[1726557247937,4.41825928,2307.2,2307.0,1.35095864]
[1726557248229,4.41825928,2307.2,2306.8,2.33807432]
[1726557248530,1.5621796,2307.1,2306.9,3.37720783]
[1726557248694,1.64607901,2307.1,2306.8,0.90857062]
[1726557249029,1.64607901,2307.1,2306.9,3.37738641]
[1726557249334,4.79977901,2307.1,2306.7,3.34367062]
[1726557249491,4.79977901,2307.1,2306.8,3.37686458]
[1726557249492,0.46527901,2307.1,2306.8,3.37686458]
[1726557249824,0.46527901,2307.1,2306.9,1.35074583]
[1726557250026,0.46527901,2307.1,2306.7,5.00056801]
[1726557250236,0.46527901,2307.1,2306.8,4.44681584]
[1726557250389,0.46527901,2307.1,2306.8,1.07027667]
[1726557251408,0.46527901,2307.1,2306.9,1.35041022]
[1726557251735,0.46527901,2307.1,2306.8,1.07027667]
[1726557251939,0.08389941,2307.1,2306.9,1.35043635]
[1726557252094,0.08389941,2307.1,2306.9,1.00995636]
[1726557253343,0.08389941,2307.1,2306.7,3.34367062]
[1726557253553,2.2693,2307.0,2306.8,3.37540473]
[1726557253713,2.3530737,2307.0,2306.9,1.35015934]
[1726557253913,2.3530737,2307.0,2306.7,0.90857062]
[1726557254141,2.3530737,2307.0,2306.8,3.37546766]
[1726557254335,2.3530737,2307.0,2306.9,1.35018706]
[1726557254722,2.3530737,2307.0,2306.7,1.75190738]
[1726557254918,2.3530737,2307.0,2306.8,3.37524288]
[1726557255120,2.3530737,2307.0,2306.7,0.84333676]
[1726557255320,0.0837737,2307.0,2306.8,3.98364167]
[1726557255527,0.0837737,2307.0,2306.9,1.34997037]
[1726557256252,0.0837737,2307.0,2306.8,0.60871574]
[1726557259420,0.0837737,2307.0,2306.8,2.86561574]
[1726557261869,0.0837737,2307.0,2306.8,0.60871574]
[1726557262203,0.0837737,2307.0,2306.7,0.84333676]
[1726557262368,0.0837737,2307.0,2306.8,1.34970155]
[1726557262564,0.0837737,2307.0,2306.7,0.84333676]
[1726557262765,0.0837737,2307.0,2306.8,1.34969308]
[1726557263024,0.0837737,2307.0,2306.7,0.84333676]
[1726557263300,0.0837737,2307.0,2306.8,1.34974848]
[1726557263506,0.0837737,2307.0,2306.7,0.84333676]
[1726557263807,0.0837737,2307.0,2306.8,2.18655568]
[1726557264016,0.0837737,2307.0,2306.8,0.83680574]
[1726557272237,0.0837737,2307.0,2306.7,0.90857062]
[1726557272396,0.0837737,2307.0,2306.8,3.37553963]
[1726557272598,0.0837737,2307.0,2306.6,7.52472062]
[1726557272931,0.0837737,2307.0,2306.7,4.26471151]
[1726557273241,0.0837737,2307.0,2306.8,1.35032176]
[1726557273539,0.0837737,2307.0,2306.7,1.79773755]
[1726557273710,0.0837737,2307.0,2306.8,1.35032248]
[1726557273911,0.0837737,2307.0,2306.7,1.79773755]
[1726557274108,0.0837737,2307.0,2306.8,1.35033664]
[1726557274428,0.0837737,2307.0,2306.7,1.79773755]
[1726557274607,0.0837737,2307.0,2306.8,3.37606823]
[1726557274815,0.0837737,2307.0,2306.7,1.79773755]
[1726557275162,0.0837737,2307.0,2306.8,3.3760495]
[1726557275430,0.0837737,2307.0,2306.7,0.88916693]
[1726557275609,0.0837737,2307.0,2306.8,1.35052778]
[1726557275805,0.0837737,2307.0,2306.7,0.88916693]
[1726557276007,4.4184537,2307.0,2306.8,1.35053641]
[1726557276208,8.3680996,2306.9,2306.6,0.90857062]
[1726557276448,8.3680996,2306.9,2306.7,3.3768571]
[1726557276601,0.08278636,2306.8,2306.6,0.90857062]
[1726557276923,8.3680996,2306.9,2306.7,3.37680892]
[1726557277121,0.0826793,2306.7,2306.6,0.90857062]
[1726557277291,8.3680996,2306.9,2306.6,4.28533692]
[1726557277493,8.3680996,2306.9,2306.7,3.3767663]
[1726557277720,8.3680996,2306.9,2306.6,0.90857062]
[1726557277923,8.3680996,2306.9,2306.7,3.37679833]
[1726557278105,8.3680996,2306.9,2306.6,0.90857062]
[1726557278312,8.3680996,2306.9,2306.7,3.37673227]
[1726557278541,8.3680996,2306.9,2306.6,0.90857062]
[1726557278711,8.3680996,2306.9,2306.7,3.3767485]
[1726557278915,8.3680996,2306.9,2306.6,0.90857062]
[1726557279120,8.3680996,2306.9,2306.7,3.37671378]
[1726557279324,8.3680996,2306.9,2306.6,0.90857062]